[Event "December 12 Late 2023"]
[Site "https://www.chess.com"]
[Date "2023.12.12"]
[Round "3"]
[White "Sari, Yasin"]
[Black "Kavyev, Ruslan"]
[Result "0-1"]
[Board "81"]
[TimeControl "180+1"]
[WhiteFideId "6320902"]
[BlackFideId "34110981"]
[WhiteElo "2425"]
[BlackElo "2589"]
[WhiteTeam "TUR"]
[BlackTeam "RUS"]
[WhiteClock "0:00:00"]
[BlackClock "0:01:19"]

1. d4 {[%clk 0:03:00]}  Nf6 {[%clk 0:02:54]} 2. Bf4 {[%clk 0:03:00]}  c5 {[%clk 0:02:54]} 3. e3 {[%clk 0:02:58]}  Qb6 {[%clk 0:02:54]} 4. Nc3 {[%clk 0:02:56]}  cxd4 {[%clk 0:02:53]} 5. exd4 {[%clk 0:02:53]}  d5 {[%clk 0:02:54]} 6. Nb5 {[%clk 0:02:48]}  Na6 {[%clk 0:02:49]} 7. c3 {[%clk 0:02:41]}  Bd7 {[%clk 0:02:48]} 8. a4 {[%clk 0:02:40]}  e6 {[%clk 0:02:47]} 9. Nf3 {[%clk 0:02:33]}  Be7 {[%clk 0:02:47]} 10. Bd3 {[%clk 0:02:21]}  O-O {[%clk 0:02:47]} 11. Ne5 {[%clk 0:02:16]}  Bxb5 {[%clk 0:02:46]} 12. axb5 {[%clk 0:02:11]}  Nc7 {[%clk 0:02:46]} 13. Qe2 {[%clk 0:01:52]}  Nce8 {[%clk 0:02:44]} 14. g4 {[%clk 0:01:45]}  Rd8 {[%clk 0:02:41]} 15. g5 {[%clk 0:01:39]}  Nd7 {[%clk 0:02:42]} 16. Qh5 {[%clk 0:01:18]}  f5 {[%clk 0:02:40]} 17. gxf6 {[%clk 0:01:10]}  Nexf6 {[%clk 0:02:40]} 18. Qh3 {[%clk 0:01:09]}  Nxe5 {[%clk 0:02:40]} 19. Bxe5 {[%clk 0:01:05]}  Ne4 {[%clk 0:02:33]} 20. Rg1 {[%clk 0:00:57]}  Bf6 {[%clk 0:02:33]} 21. f3 {[%clk 0:00:35]}  Bxe5 {[%clk 0:02:18]} 22. fxe4 {[%clk 0:00:34]}  Bxd4 {[%clk 0:01:49]} 23. cxd4 {[%clk 0:00:21]}  Qxd4 {[%clk 0:01:50]} 24. O-O-O {[%clk 0:00:12]}  dxe4 {[%clk 0:01:47]} 25. Bc2 {[%clk 0:00:08]}  Qc4 {[%clk 0:01:44]} 26. Kb1 {[%clk 0:00:07]}  Rc8 {[%clk 0:01:41]} 27. Bb3 {[%clk 0:00:07]}  Qxb5 {[%clk 0:01:37]} 28. Bxe6+ {[%clk 0:00:07]}  Kh8 {[%clk 0:01:37]} 29. Bxc8 {[%clk 0:00:08]}  e3 {[%clk 0:01:30]} 30. Qxe3 {[%clk 0:00:08]}  Rxc8 {[%clk 0:01:29]} 31. Qd4 {[%clk 0:00:07]}  Qf5+ {[%clk 0:01:28]} 32. Rd3 {[%clk 0:00:04]}  Rg8 {[%clk 0:01:23]} 33. Qd5 {[%clk 0:00:05]}  Qf2 {[%clk 0:01:20]} 34. Rgd1 {[%clk 0:00:05]}  h6 {[%clk 0:01:20]} 35. Qd7 {[%clk 0:00:04]}  Qxh2 {[%clk 0:01:18]} 36. R1d2 {[%clk 0:00:03]}  Qg1+ {[%clk 0:01:18]} 37. Ka2 {[%clk 0:00:04]}  Qb6 {[%clk 0:01:18]} 38. Qd6 {[%clk 0:00:04]}  Qa5+ {[%clk 0:01:19]} 39. Kb1 {[%clk 0:00:04]}  Re8 {[%clk 0:01:18]} 40. Qd7 {[%clk 0:00:04]}  Qh5 {[%clk 0:01:16]} 41. Rd1 {[%clk 0:00:03]}  Qg6 {[%clk 0:01:15]} 42. Qxe8+ {[%clk 0:00:03]}  Qxe8 {[%clk 0:01:15]} 43. Rd8 {[%clk 0:00:04]}  Qxd8 {[%clk 0:01:16]} 44. Rxd8+ {[%clk 0:00:04]}  Kh7 {[%clk 0:01:17]} 45. Rd7 {[%clk 0:00:05]}  h5 {[%clk 0:01:17]} 46. Rxb7 {[%clk 0:00:05]}  h4 {[%clk 0:01:18]} 47. Rxa7 {[%clk 0:00:05]}  Kh6 {[%clk 0:01:18]} 48. Ra3 {[%clk 0:00:04]}  g5 {[%clk 0:01:18]} 49. b4 {[%clk 0:00:05]}  g4 {[%clk 0:01:18]} 50. b5 {[%clk 0:00:04]}  h3 {[%clk 0:01:19]} 51. Rg3 {[%clk 0:00:00]}  h2 {[%clk 0:01:19]} 0-1

[Event "December 12 Late 2023"]
[Site "https://www.chess.com"]
[Date "2023.12.12"]
[Round "3"]
[White "Aghasiyev, Kamal"]
[Black "Zakarian, David"]
[Result "1-0"]
[Board "84"]
[TimeControl "180+1"]
[WhiteFideId "13402854"]
[BlackFideId "13301276"]
[WhiteElo "2578"]
[BlackElo "2408"]
[WhiteTeam "AZE"]
[BlackTeam "ARM"]
[WhiteClock "0:00:10"]
[BlackClock "0:00:26"]

1. d4 {[%clk 0:02:59]}  Nf6 {[%clk 0:02:59]} 2. c4 {[%clk 0:02:58]}  e6 {[%clk 0:03:00]} 3. Nc3 {[%clk 0:02:56]}  Bb4 {[%clk 0:03:00]} 4. Bd2 {[%clk 0:02:52]}  O-O {[%clk 0:02:58]} 5. Nf3 {[%clk 0:02:52]}  b6 {[%clk 0:02:58]} 6. e3 {[%clk 0:02:51]}  Bb7 {[%clk 0:02:56]} 7. Bd3 {[%clk 0:02:51]}  Bxc3 {[%clk 0:02:55]} 8. Bxc3 {[%clk 0:02:48]}  Ne4 {[%clk 0:02:55]} 9. Qc2 {[%clk 0:02:46]}  f5 {[%clk 0:02:56]} 10. Nd2 {[%clk 0:02:32]}  d5 {[%clk 0:02:45]} 11. Nxe4 {[%clk 0:02:25]}  dxe4 {[%clk 0:02:40]} 12. Be2 {[%clk 0:02:25]}  Qg5 {[%clk 0:02:34]} 13. g3 {[%clk 0:02:22]}  Nd7 {[%clk 0:02:33]} 14. O-O-O {[%clk 0:02:10]}  c5 {[%clk 0:02:24]} 15. Kb1 {[%clk 0:02:01]}  cxd4 {[%clk 0:02:18]} 16. Bxd4 {[%clk 0:02:00]}  e5 {[%clk 0:02:15]} 17. Bc3 {[%clk 0:01:55]}  Qe7 {[%clk 0:02:14]} 18. Qa4 {[%clk 0:01:38]}  Nc5 {[%clk 0:02:11]} 19. Bb4 {[%clk 0:01:34]}  Rfc8 {[%clk 0:02:06]} 20. Bxc5 {[%clk 0:01:29]}  Qxc5 {[%clk 0:02:03]} 21. Qd7 {[%clk 0:01:28]}  Ba6 {[%clk 0:01:56]} 22. Qe6+ {[%clk 0:01:01]}  Kh8 {[%clk 0:01:54]} 23. Rd7 {[%clk 0:01:01]}  Rc6 {[%clk 0:00:58]} 24. Qf7 {[%clk 0:00:54]}  Rg8 {[%clk 0:00:57]} 25. Rc1 {[%clk 0:00:38]}  b5 {[%clk 0:00:51]} 26. Rd5 {[%clk 0:00:33]}  Qb4 {[%clk 0:00:44]} 27. a3 {[%clk 0:00:33]}  Qb3 {[%clk 0:00:31]} 28. Bd1 {[%clk 0:00:30]}  Qxc4 {[%clk 0:00:22]} 29. Rxc4 {[%clk 0:00:29]}  bxc4 {[%clk 0:00:22]} 30. Rxe5 {[%clk 0:00:23]}  c3 {[%clk 0:00:21]} 31. Bb3 {[%clk 0:00:21]}  Bd3+ {[%clk 0:00:20]} 32. Ka2 {[%clk 0:00:18]}  Rcc8 {[%clk 0:00:17]} 33. bxc3 {[%clk 0:00:16]}  Rgf8 {[%clk 0:00:16]} 34. Qe7 {[%clk 0:00:13]}  h6 {[%clk 0:00:15]} 35. Kb2 {[%clk 0:00:09]}  Rfd8 {[%clk 0:00:15]} 36. Rxf5 {[%clk 0:00:07]}  Be2 {[%clk 0:00:15]} 37. a4 {[%clk 0:00:07]}  Rd2+ {[%clk 0:00:15]} 38. Ka3 {[%clk 0:00:07]}  Rdd8 {[%clk 0:00:14]} 39. Rf7 {[%clk 0:00:06]}  Rg8 {[%clk 0:00:15]} 40. Qxe4 {[%clk 0:00:06]}  Bh5 {[%clk 0:00:15]} 41. Re7 {[%clk 0:00:06]}  Be8 {[%clk 0:00:15]} 42. Qe5 {[%clk 0:00:06]}  Bg6 {[%clk 0:00:15]} 43. Bxg8 {[%clk 0:00:04]}  Rxg8 {[%clk 0:00:16]} 44. Re6 {[%clk 0:00:04]}  Kh7 {[%clk 0:00:16]} 45. Rxg6 {[%clk 0:00:04]}  Kxg6 {[%clk 0:00:16]} 46. Qe6+ {[%clk 0:00:04]}  Kh7 {[%clk 0:00:17]} 47. Qxg8+ {[%clk 0:00:05]}  Kxg8 {[%clk 0:00:17]} 48. Kb4 {[%clk 0:00:06]}  Kf7 {[%clk 0:00:18]} 49. c4 {[%clk 0:00:06]}  Ke6 {[%clk 0:00:18]} 50. c5 {[%clk 0:00:07]}  Ke5 {[%clk 0:00:19]} 51. c6 {[%clk 0:00:07]}  Kd6 {[%clk 0:00:20]} 52. Kb5 {[%clk 0:00:07]}  Kc7 {[%clk 0:00:21]} 53. Kc5 {[%clk 0:00:07]}  a5 {[%clk 0:00:22]} 54. e4 {[%clk 0:00:08]}  g5 {[%clk 0:00:23]} 55. e5 {[%clk 0:00:08]}  g4 {[%clk 0:00:23]} 56. e6 {[%clk 0:00:08]}  h5 {[%clk 0:00:24]} 57. e7 {[%clk 0:00:09]}  h4 {[%clk 0:00:24]} 58. e8=Q {[%clk 0:00:09]}  hxg3 {[%clk 0:00:25]} 59. Qd7+ {[%clk 0:00:10]}  Kb8 {[%clk 0:00:26]} 60. Qb7# {[%clk 0:00:10]} 1-0

[Event "December 12 Late 2023"]
[Site "https://www.chess.com"]
[Date "2023.12.12"]
[Round "3"]
[White "Laddha, Shubh Jayesh"]
[Black "Esmeraldas Huachi, Anderson"]
[Result "1-0"]
[Board "85"]
[TimeControl "180+1"]
[WhiteFideId "30942799"]
[BlackFideId "3616363"]
[WhiteElo "2578"]
[BlackElo "2406"]
[WhiteTeam "USA"]
[BlackTeam "ECU"]
[WhiteClock "0:00:14"]
[BlackClock "0:00:28"]

1. c4 {[%clk 0:03:00]}  e5 {[%clk 0:02:59]} 2. g3 {[%clk 0:03:00]}  Nc6 {[%clk 0:02:59]} 3. Bg2 {[%clk 0:03:00]}  f5 {[%clk 0:03:00]} 4. Nc3 {[%clk 0:03:01]}  Nf6 {[%clk 0:03:01]} 5. e3 {[%clk 0:03:01]}  d6 {[%clk 0:03:00]} 6. Nge2 {[%clk 0:03:02]}  g6 {[%clk 0:03:00]} 7. O-O {[%clk 0:03:02]}  Bg7 {[%clk 0:03:01]} 8. Rb1 {[%clk 0:03:02]}  O-O {[%clk 0:03:02]} 9. b4 {[%clk 0:03:03]}  Ne7 {[%clk 0:03:02]} 10. b5 {[%clk 0:03:04]}  c6 {[%clk 0:03:02]} 11. a4 {[%clk 0:03:04]}  Be6 {[%clk 0:03:02]} 12. a5 {[%clk 0:03:05]}  Qxa5 {[%clk 0:03:02]} 13. d3 {[%clk 0:03:03]}  d5 {[%clk 0:02:43]} 14. cxd5 {[%clk 0:02:40]}  cxd5 {[%clk 0:02:44]} 15. d4 {[%clk 0:02:38]}  e4 {[%clk 0:02:40]} 16. Bd2 {[%clk 0:02:36]}  Qc7 {[%clk 0:02:34]} 17. Nf4 {[%clk 0:02:31]}  Bf7 {[%clk 0:02:34]} 18. Qb3 {[%clk 0:02:24]}  Rfc8 {[%clk 0:02:28]} 19. Na4 {[%clk 0:02:19]}  b6 {[%clk 0:02:22]} 20. h4 {[%clk 0:01:57]}  h6 {[%clk 0:02:11]} 21. Rfc1 {[%clk 0:01:53]}  Qd7 {[%clk 0:02:10]} 22. Bh3 {[%clk 0:01:43]}  g5 {[%clk 0:02:10]} 23. hxg5 {[%clk 0:01:40]}  hxg5 {[%clk 0:02:11]} 24. Ne2 {[%clk 0:01:41]}  Bf8 {[%clk 0:02:04]} 25. Ra1 {[%clk 0:01:35]}  Rxc1+ {[%clk 0:02:02]} 26. Bxc1 {[%clk 0:01:29]}  Rc8 {[%clk 0:02:00]} 27. Nac3 {[%clk 0:01:25]}  Rc7 {[%clk 0:01:57]} 28. Ba3 {[%clk 0:01:24]}  Ng6 {[%clk 0:01:58]} 29. Bxf8 {[%clk 0:01:20]}  Nxf8 {[%clk 0:01:59]} 30. Rb1 {[%clk 0:00:46]}  Be6 {[%clk 0:01:57]} 31. Bg2 {[%clk 0:00:44]}  Ng6 {[%clk 0:01:57]} 32. Na2 {[%clk 0:00:42]}  f4 {[%clk 0:01:52]} 33. gxf4 {[%clk 0:00:43]}  gxf4 {[%clk 0:01:53]} 34. exf4 {[%clk 0:00:43]}  Bg4 {[%clk 0:01:52]} 35. Qg3 {[%clk 0:00:42]}  Nh5 {[%clk 0:01:46]} 36. Qe3 {[%clk 0:00:41]}  Bxe2 {[%clk 0:01:45]} 37. Qxe2 {[%clk 0:00:42]}  Nhxf4 {[%clk 0:01:44]} 38. Qf1 {[%clk 0:00:34]}  Qg4 {[%clk 0:01:43]} 39. Rb3 {[%clk 0:00:33]}  Rg7 {[%clk 0:01:40]} 40. Nc1 {[%clk 0:00:26]}  Nxg2 {[%clk 0:01:38]} 41. Rg3 {[%clk 0:00:18]}  N6h4 {[%clk 0:01:02]} 42. Rxg4 {[%clk 0:00:16]}  Rxg4 {[%clk 0:01:03]} 43. Kh2 {[%clk 0:00:13]}  Rg5 {[%clk 0:00:56]} 44. Ne2 {[%clk 0:00:11]}  Nf3+ {[%clk 0:00:57]} 45. Kh3 {[%clk 0:00:12]}  Nf4+ {[%clk 0:00:57]} 46. Nxf4 {[%clk 0:00:12]}  Rg1 {[%clk 0:00:49]} 47. Qe2 {[%clk 0:00:09]}  Kf7 {[%clk 0:00:44]} 48. Qa2 {[%clk 0:00:08]}  Rh1+ {[%clk 0:00:24]} 49. Kg4 {[%clk 0:00:06]}  Kf6 {[%clk 0:00:22]} 50. Nxd5+ {[%clk 0:00:06]}  Kg7 {[%clk 0:00:20]} 51. Qxa7+ {[%clk 0:00:05]}  Kh6 {[%clk 0:00:20]} 52. Qxb6+ {[%clk 0:00:05]}  Kg7 {[%clk 0:00:21]} 53. Qc7+ {[%clk 0:00:05]}  Kg6 {[%clk 0:00:20]} 54. Qd6+ {[%clk 0:00:05]}  Kg7 {[%clk 0:00:21]} 55. Qe7+ {[%clk 0:00:05]}  Kg6 {[%clk 0:00:22]} 56. Qf6+ {[%clk 0:00:05]}  Kh7 {[%clk 0:00:22]} 57. Qf7+ {[%clk 0:00:06]}  Kh6 {[%clk 0:00:22]} 58. Qf4+ {[%clk 0:00:06]}  Kg6 {[%clk 0:00:22]} 59. Qxe4+ {[%clk 0:00:06]}  Kh6 {[%clk 0:00:22]} 60. Qxf3 {[%clk 0:00:06]}  Rg1+ {[%clk 0:00:22]} 61. Kf4 {[%clk 0:00:06]}  Rg5 {[%clk 0:00:22]} 62. Qh3+ {[%clk 0:00:07]}  Kg6 {[%clk 0:00:23]} 63. Qg4 {[%clk 0:00:07]}  Rxg4+ {[%clk 0:00:22]} 64. Kxg4 {[%clk 0:00:08]}  Kf7 {[%clk 0:00:23]} 65. b6 {[%clk 0:00:08]}  Ke6 {[%clk 0:00:24]} 66. b7 {[%clk 0:00:09]}  Kxd5 {[%clk 0:00:25]} 67. b8=Q {[%clk 0:00:10]}  Ke4 {[%clk 0:00:25]} 68. Qe5+ {[%clk 0:00:11]}  Kd3 {[%clk 0:00:26]} 69. d5 {[%clk 0:00:11]}  Kc4 {[%clk 0:00:27]} 70. d6 {[%clk 0:00:12]}  Kb4 {[%clk 0:00:27]} 71. d7 {[%clk 0:00:13]}  Kc4 {[%clk 0:00:28]} 72. d8=Q {[%clk 0:00:14]}  Kb4 {[%clk 0:00:28]} 73. Qec7 {[%clk 0:00:14]} 1-0

[Event "December 12 Late 2023"]
[Site "https://www.chess.com"]
[Date "2023.12.12"]
[Round "3"]
[White "Assylov, Miras"]
[Black "Luong Phuong Hanh"]
[Result "1-0"]
[Board "86"]
[TimeControl "180+1"]
[WhiteFideId "13728873"]
[BlackFideId "12401013"]
[WhiteElo "2574"]
[BlackElo "2406"]
[WhiteTeam "KAZ"]
[BlackTeam "VIE"]
[WhiteClock "0:00:02"]
[BlackClock "0:00:00"]

1. b3 {[%clk 0:03:00]}  e5 {[%clk 0:02:59]} 2. Bb2 {[%clk 0:03:00]}  d6 {[%clk 0:02:59]} 3. e3 {[%clk 0:02:58]}  g6 {[%clk 0:03:00]} 4. d4 {[%clk 0:02:46]}  Bg7 {[%clk 0:02:59]} 5. dxe5 {[%clk 0:02:46]}  Nc6 {[%clk 0:02:59]} 6. Nf3 {[%clk 0:02:45]}  Nge7 {[%clk 0:02:59]} 7. Nbd2 {[%clk 0:02:34]}  dxe5 {[%clk 0:02:58]} 8. Be2 {[%clk 0:02:29]}  O-O {[%clk 0:02:58]} 9. O-O {[%clk 0:02:29]}  e4 {[%clk 0:02:51]} 10. Bxg7 {[%clk 0:01:58]}  exf3 {[%clk 0:02:50]} 11. Bxf8 {[%clk 0:01:59]}  fxe2 {[%clk 0:02:49]} 12. Qxe2 {[%clk 0:02:00]}  Kxf8 {[%clk 0:02:46]} 13. Rfd1 {[%clk 0:01:58]}  Be6 {[%clk 0:02:44]} 14. c4 {[%clk 0:01:58]}  Qc8 {[%clk 0:02:41]} 15. Ne4 {[%clk 0:01:56]}  Bf5 {[%clk 0:02:37]} 16. Nf6 {[%clk 0:01:51]}  h5 {[%clk 0:02:35]} 17. Qb2 {[%clk 0:01:46]}  Qe6 {[%clk 0:01:43]} 18. e4 {[%clk 0:01:42]}  Bg4 {[%clk 0:01:25]} 19. f3 {[%clk 0:01:42]}  Ne5 {[%clk 0:01:25]} 20. Nd5 {[%clk 0:01:05]}  Nxd5 {[%clk 0:01:17]} 21. exd5 {[%clk 0:00:59]}  Qf6 {[%clk 0:01:17]} 22. Qa3+ {[%clk 0:00:43]}  Kg8 {[%clk 0:01:12]} 23. fxg4 {[%clk 0:00:39]}  Nxg4 {[%clk 0:01:12]} 24. h3 {[%clk 0:00:38]}  Ne3 {[%clk 0:00:58]} 25. Rf1 {[%clk 0:00:19]}  Qd4 {[%clk 0:00:31]} 26. Kh1 {[%clk 0:00:18]}  Qd2 {[%clk 0:00:26]} 27. Rg1 {[%clk 0:00:09]}  Nf5 {[%clk 0:00:26]} 28. Qc1 {[%clk 0:00:05]}  Qd4 {[%clk 0:00:23]} 29. Rd1 {[%clk 0:00:04]}  Ng3+ {[%clk 0:00:20]} 30. Kh2 {[%clk 0:00:04]}  Qe5 {[%clk 0:00:21]} 31. Qc2 {[%clk 0:00:02]}  Nf1+ {[%clk 0:00:17]} 32. Kg1 {[%clk 0:00:02]}  Ng3 {[%clk 0:00:14]} 33. Qf2 {[%clk 0:00:02]}  h4 {[%clk 0:00:14]} 34. Re1 {[%clk 0:00:02]}  Qc3 {[%clk 0:00:12]} 35. Rac1 {[%clk 0:00:03]}  Qg7 {[%clk 0:00:11]} 36. Re3 {[%clk 0:00:03]}  Nf5 {[%clk 0:00:09]} 37. Re2 {[%clk 0:00:02]}  Qh6 {[%clk 0:00:09]} 38. Rce1 {[%clk 0:00:02]}  Kg7 {[%clk 0:00:09]} 39. Re8 {[%clk 0:00:02]}  Rxe8 {[%clk 0:00:08]} 40. Rxe8 {[%clk 0:00:03]}  Qc1+ {[%clk 0:00:08]} 41. Re1 {[%clk 0:00:03]}  Qc3 {[%clk 0:00:09]} 42. Rf1 {[%clk 0:00:02]}  Kh7 {[%clk 0:00:08]} 43. Qf4 {[%clk 0:00:02]}  Kg7 {[%clk 0:00:06]} 44. Qg4 {[%clk 0:00:02]}  Qe3+ {[%clk 0:00:06]} 45. Kh2 {[%clk 0:00:02]}  Qe5+ {[%clk 0:00:06]} 46. Qf4 {[%clk 0:00:02]}  Qc3 {[%clk 0:00:05]} 47. Rf2 {[%clk 0:00:02]}  c6 {[%clk 0:00:04]} 48. dxc6 {[%clk 0:00:02]}  bxc6 {[%clk 0:00:05]} 49. Qe4 {[%clk 0:00:02]}  Qf6 {[%clk 0:00:05]} 50. Rxf5 {[%clk 0:00:02]}  gxf5 {[%clk 0:00:03]} 51. Qf4 {[%clk 0:00:02]}  Kg6 {[%clk 0:00:03]} 52. Kg1 {[%clk 0:00:02]}  c5 {[%clk 0:00:03]} 53. Qf2 {[%clk 0:00:02]}  Qe7 {[%clk 0:00:02]} 54. Kh2 {[%clk 0:00:02]}  Kg7 {[%clk 0:00:02]} 55. g3 {[%clk 0:00:02]}  Qe5 {[%clk 0:00:00]} 56. Kg2 {[%clk 0:00:02]} 1-0

[Event "December 12 Late 2023"]
[Site "https://www.chess.com"]
[Date "2023.12.12"]
[Round "3"]
[White "Olsson, William"]
[Black "Espinoza Villanueva, Rodrigo"]
[Result "0-1"]
[Board "88"]
[TimeControl "180+1"]
[WhiteFideId "1741721"]
[BlackFideId "5140188"]
[WhiteElo "2402"]
[BlackElo "2564"]
[WhiteTeam "SWE"]
[BlackTeam "MEX"]
[WhiteClock "0:00:00"]
[BlackClock "0:01:19"]

1. c4 {[%clk 0:03:00]}  Nf6 {[%clk 0:02:59]} 2. g3 {[%clk 0:03:01]}  g6 {[%clk 0:02:58]} 3. Bg2 {[%clk 0:03:01]}  Bg7 {[%clk 0:02:58]} 4. Nc3 {[%clk 0:03:01]}  O-O {[%clk 0:02:58]} 5. d4 {[%clk 0:03:01]}  d6 {[%clk 0:02:57]} 6. Nf3 {[%clk 0:03:00]}  Nc6 {[%clk 0:02:51]} 7. O-O {[%clk 0:02:58]}  a6 {[%clk 0:02:48]} 8. d5 {[%clk 0:02:57]}  Na5 {[%clk 0:02:47]} 9. b3 {[%clk 0:02:57]}  c5 {[%clk 0:02:47]} 10. Bb2 {[%clk 0:02:55]}  b5 {[%clk 0:02:45]} 11. cxb5 {[%clk 0:02:27]}  axb5 {[%clk 0:02:46]} 12. Nxb5 {[%clk 0:02:28]}  Ba6 {[%clk 0:02:44]} 13. Nc3 {[%clk 0:02:22]}  Qb6 {[%clk 0:02:43]} 14. Qc2 {[%clk 0:02:16]}  Rfb8 {[%clk 0:02:43]} 15. Na4 {[%clk 0:02:07]}  Qb7 {[%clk 0:02:41]} 16. Rfd1 {[%clk 0:01:54]}  c4 {[%clk 0:02:38]} 17. b4 {[%clk 0:01:23]}  Qxb4 {[%clk 0:02:26]} 18. Bc3 {[%clk 0:01:23]}  Qa3 {[%clk 0:02:07]} 19. Bb2 {[%clk 0:01:00]}  Rxb2 {[%clk 0:02:05]} 20. Nxb2 {[%clk 0:01:00]}  c3 {[%clk 0:02:05]} 21. Nd3 {[%clk 0:00:52]}  Nc4 {[%clk 0:02:02]} 22. Nd4 {[%clk 0:00:48]}  Nd7 {[%clk 0:01:59]} 23. Nc6 {[%clk 0:00:44]}  Nc5 {[%clk 0:01:52]} 24. Nxc5 {[%clk 0:00:41]}  dxc5 {[%clk 0:01:52]} 25. Nxe7+ {[%clk 0:00:39]}  Kf8 {[%clk 0:01:51]} 26. d6 {[%clk 0:00:40]}  Rd8 {[%clk 0:01:49]} 27. Nc6 {[%clk 0:00:35]}  Rxd6 {[%clk 0:01:47]} 28. Rxd6 {[%clk 0:00:35]}  Nxd6 {[%clk 0:01:48]} 29. Qd1 {[%clk 0:00:23]}  c4 {[%clk 0:01:32]} 30. Rb1 {[%clk 0:00:18]}  Bf6 {[%clk 0:01:29]} 31. Rb8+ {[%clk 0:00:18]}  Kg7 {[%clk 0:01:29]} 32. Qc2 {[%clk 0:00:17]}  Bb7 {[%clk 0:01:21]} 33. h4 {[%clk 0:00:00]}  Qb2 {[%clk 0:01:19]} 0-1

[Event "December 12 Late 2023"]
[Site "https://www.chess.com"]
[Date "2023.12.12"]
[Round "3"]
[White "Kashefi, Amir Hosein"]
[Black "Storn, Justin"]
[Result "1-0"]
[Board "92"]
[TimeControl "180+1"]
[WhiteFideId "12557935"]
[BlackFideId "30922720"]
[WhiteElo "2558"]
[BlackElo "2363"]
[WhiteTeam "IRI"]
[BlackTeam "USA"]
[WhiteClock "0:00:37"]
[BlackClock "0:00:05"]

1. d4 {[%clk 0:02:59]}  Nf6 {[%clk 0:02:54]} 2. Nf3 {[%clk 0:03:00]}  e6 {[%clk 0:02:54]} 3. Bf4 {[%clk 0:03:01]}  d5 {[%clk 0:02:52]} 4. e3 {[%clk 0:03:01]}  Bd6 {[%clk 0:02:53]} 5. Bg3 {[%clk 0:03:00]}  O-O {[%clk 0:02:50]} 6. Nbd2 {[%clk 0:03:00]}  c5 {[%clk 0:02:50]} 7. c3 {[%clk 0:03:00]}  Nc6 {[%clk 0:02:50]} 8. Bd3 {[%clk 0:02:58]}  b6 {[%clk 0:02:44]} 9. Ne5 {[%clk 0:02:56]}  Qc7 {[%clk 0:02:40]} 10. f4 {[%clk 0:02:55]}  Bb7 {[%clk 0:02:27]} 11. Bh4 {[%clk 0:02:52]}  Ne4 {[%clk 0:01:50]} 12. Bxe4 {[%clk 0:02:36]}  dxe4 {[%clk 0:01:51]} 13. Nxe4 {[%clk 0:02:37]}  Be7 {[%clk 0:01:24]} 14. Bxe7 {[%clk 0:02:24]}  Qxe7 {[%clk 0:01:25]} 15. Ng3 {[%clk 0:02:18]}  Nxe5 {[%clk 0:01:23]} 16. fxe5 {[%clk 0:02:17]}  Bxg2 {[%clk 0:00:56]} 17. Rg1 {[%clk 0:02:17]}  Bc6 {[%clk 0:00:56]} 18. Qg4 {[%clk 0:02:09]}  g6 {[%clk 0:00:47]} 19. Nh5 {[%clk 0:02:04]}  cxd4 {[%clk 0:00:41]} 20. Nf6+ {[%clk 0:02:03]}  Kg7 {[%clk 0:00:41]} 21. exd4 {[%clk 0:02:02]}  b5 {[%clk 0:00:26]} 22. Qh4 {[%clk 0:01:57]}  Rh8 {[%clk 0:00:25]} 23. O-O-O {[%clk 0:01:50]}  b4 {[%clk 0:00:25]} 24. Nh5+ {[%clk 0:01:42]}  Kf8 {[%clk 0:00:24]} 25. Nf6 {[%clk 0:01:43]}  Kg7 {[%clk 0:00:24]} 26. Rd3 {[%clk 0:01:37]}  bxc3 {[%clk 0:00:21]} 27. Rxc3 {[%clk 0:01:37]}  Bb7 {[%clk 0:00:17]} 28. Rgg3 {[%clk 0:01:27]}  Rac8 {[%clk 0:00:17]} 29. Rh3 {[%clk 0:01:16]}  Rxc3+ {[%clk 0:00:16]} 30. Rxc3 {[%clk 0:01:16]}  h6 {[%clk 0:00:15]} 31. Nh5+ {[%clk 0:01:13]}  Kf8 {[%clk 0:00:14]} 32. Qxe7+ {[%clk 0:01:14]}  Kxe7 {[%clk 0:00:15]} 33. Rc7+ {[%clk 0:01:15]}  Kd8 {[%clk 0:00:15]} 34. Rxb7 {[%clk 0:01:15]}  Kc8 {[%clk 0:00:12]} 35. Rxa7 {[%clk 0:01:14]}  Kb8 {[%clk 0:00:12]} 36. Rxf7 {[%clk 0:01:14]}  gxh5 {[%clk 0:00:12]} 37. Rf6 {[%clk 0:01:12]}  Rd8 {[%clk 0:00:12]} 38. Rxe6 {[%clk 0:01:10]}  Rxd4 {[%clk 0:00:12]} 39. Rxh6 {[%clk 0:01:10]}  Rh4 {[%clk 0:00:13]} 40. e6 {[%clk 0:01:08]}  Kc7 {[%clk 0:00:13]} 41. Rh7+ {[%clk 0:01:04]}  Kd6 {[%clk 0:00:13]} 42. e7 {[%clk 0:01:04]}  Kd7 {[%clk 0:00:14]} 43. a4 {[%clk 0:01:00]}  Rxa4 {[%clk 0:00:14]} 44. Rxh5 {[%clk 0:00:55]}  Kxe7 {[%clk 0:00:14]} 45. Kc2 {[%clk 0:00:53]}  Rg4 {[%clk 0:00:13]} 46. Kb3 {[%clk 0:00:50]}  Kd6 {[%clk 0:00:13]} 47. Ka3 {[%clk 0:00:49]}  Kc6 {[%clk 0:00:13]} 48. b3 {[%clk 0:00:48]}  Kb6 {[%clk 0:00:13]} 49. Rh3 {[%clk 0:00:45]}  Rf4 {[%clk 0:00:13]} 50. Rg3 {[%clk 0:00:45]}  Rh4 {[%clk 0:00:13]} 51. h3 {[%clk 0:00:45]}  Kb5 {[%clk 0:00:13]} 52. Kb2 {[%clk 0:00:45]}  Kc5 {[%clk 0:00:13]} 53. Rc3+ {[%clk 0:00:45]}  Kb5 {[%clk 0:00:14]} 54. Kc2 {[%clk 0:00:46]}  Kb4 {[%clk 0:00:13]} 55. Kd2 {[%clk 0:00:44]}  Ka3 {[%clk 0:00:11]} 56. Rg3 {[%clk 0:00:42]}  Kb2 {[%clk 0:00:09]} 57. Ke2 {[%clk 0:00:38]}  Ka3 {[%clk 0:00:08]} 58. Kf2 {[%clk 0:00:37]}  Rf4+ {[%clk 0:00:07]} 59. Rf3 {[%clk 0:00:37]}  Rd4 {[%clk 0:00:06]} 60. Kg3 {[%clk 0:00:37]}  Kb4 {[%clk 0:00:06]} 61. h4 {[%clk 0:00:37]}  Rd5 {[%clk 0:00:05]} 62. Kg4 {[%clk 0:00:37]} 1-0

[Event "December 12 Late 2023"]
[Site "https://www.chess.com"]
[Date "2023.12.12"]
[Round "3"]
[White "Play, Gilles"]
[Black "Gerola, Fausto"]
[Result "1-0"]
[Board "94"]
[TimeControl "180+1"]
[WhiteFideId "45130892"]
[BlackFideId "845175"]
[WhiteElo "2551"]
[BlackElo "2347"]
[WhiteTeam "FRA"]
[BlackTeam "ITA"]
[WhiteClock "0:02:27"]
[BlackClock "0:01:46"]

1. f4 {[%clk 0:02:59]}  e5 {[%clk 0:02:59]} 2. fxe5 {[%clk 0:02:59]}  d6 {[%clk 0:02:59]} 3. exd6 {[%clk 0:03:00]}  Bxd6 {[%clk 0:02:59]} 4. Nf3 {[%clk 0:03:00]}  Nf6 {[%clk 0:03:00]} 5. d4 {[%clk 0:02:55]}  O-O {[%clk 0:02:59]} 6. e3 {[%clk 0:02:54]}  Ng4 {[%clk 0:02:59]} 7. Bd3 {[%clk 0:02:52]}  Nc6 {[%clk 0:02:51]} 8. O-O {[%clk 0:02:49]}  Re8 {[%clk 0:02:49]} 9. e4 {[%clk 0:02:46]}  Nb4 {[%clk 0:02:36]} 10. e5 {[%clk 0:02:46]}  Nxd3 {[%clk 0:02:35]} 11. Qxd3 {[%clk 0:02:47]}  Bf8 {[%clk 0:02:22]} 12. Ng5 {[%clk 0:02:43]}  f5 {[%clk 0:02:17]} 13. Qc4+ {[%clk 0:02:35]}  Be6 {[%clk 0:02:00]} 14. Nxe6 {[%clk 0:02:34]}  b5 {[%clk 0:02:01]} 15. Qb3 {[%clk 0:02:30]}  Qh4 {[%clk 0:01:50]} 16. Ng5+ {[%clk 0:02:27]}  Kh8 {[%clk 0:01:48]} 17. Nf7+ {[%clk 0:02:25]}  Kg8 {[%clk 0:01:48]} 18. Nh6+ {[%clk 0:02:26]}  Kh8 {[%clk 0:01:46]} 19. Qg8# {[%clk 0:02:27]} 1-0